[Event "Titled Tuesday Blitz May 2 Late 2023"]
[White "Zarubitski, Viachaslau"]
[Black "Bluebaum, Matthias"]
[WhiteFideId "13509373"]
[BlackFideId "24651516"]
[WhiteElo "2284"]
[BlackElo "2638"]
[Result "0-1"]
[Round "02"]
[TimeControl "180+2"]
[Date "2023.05.02"]
[WhiteClock "0:00:12"]
[BlackClock "0:00:29"]

1. e4 {[%clk 0:02:57]}  e6 {[%clk 0:03:00]} 2. d3 {[%clk 0:02:57]}  d5 {[%clk 0:03:00]} 3. Nd2 {[%clk 0:02:57]}  Nf6 {[%clk 0:03:01]} 4. Ngf3 {[%clk 0:02:57]}  Be7 {[%clk 0:03:02]} 5. g3 {[%clk 0:02:57]}  a5 {[%clk 0:03:02]} 6. Bg2 {[%clk 0:02:57]}  a4 {[%clk 0:03:03]} 7. a3 {[%clk 0:02:56]}  c5 {[%clk 0:03:03]} 8. O-O {[%clk 0:02:56]}  Nc6 {[%clk 0:03:03]} 9. Re1 {[%clk 0:02:55]}  h6 {[%clk 0:03:03]} 10. h4 {[%clk 0:02:51]}  O-O {[%clk 0:03:02]} 11. e5 {[%clk 0:02:51]}  Nh7 {[%clk 0:03:03]} 12. Nf1 {[%clk 0:02:48]}  f6 {[%clk 0:03:03]} 13. N1h2 {[%clk 0:02:30]}  f5 {[%clk 0:02:50]} 14. h5 {[%clk 0:02:14]}  Bd7 {[%clk 0:02:48]} 15. Bf4 {[%clk 0:02:07]}  Be8 {[%clk 0:02:47]} 16. Nd2 {[%clk 0:02:07]}  Bf7 {[%clk 0:02:45]} 17. c4 {[%clk 0:02:05]}  Nd4 {[%clk 0:02:32]} 18. Be3 {[%clk 0:01:43]}  dxc4 {[%clk 0:02:18]} 19. Nxc4 {[%clk 0:01:28]}  Rb8 {[%clk 0:02:08]} 20. Bf4 {[%clk 0:01:25]}  Be8 {[%clk 0:01:33]} 21. Nd6 {[%clk 0:01:17]}  Bc6 {[%clk 0:01:33]} 22. Rc1 {[%clk 0:01:14]}  Bxg2 {[%clk 0:01:23]} 23. Kxg2 {[%clk 0:01:15]}  Nb3 {[%clk 0:01:24]} 24. Rc3 {[%clk 0:01:12]}  b5 {[%clk 0:01:21]} 25. Rxb3 {[%clk 0:01:11]}  axb3 {[%clk 0:01:21]} 26. Qxb3 {[%clk 0:01:11]}  Qd7 {[%clk 0:01:21]} 27. Nf3 {[%clk 0:01:12]}  Rfd8 {[%clk 0:01:07]} 28. Rc1 {[%clk 0:01:09]}  c4 {[%clk 0:01:05]} 29. dxc4 {[%clk 0:01:09]}  bxc4 {[%clk 0:01:06]} 30. Qa2 {[%clk 0:01:03]}  Ng5 {[%clk 0:00:44]} 31. Bxg5 {[%clk 0:00:28]}  hxg5 {[%clk 0:00:44]} 32. Rxc4 {[%clk 0:00:27]}  g4 {[%clk 0:00:38]} 33. Nd4 {[%clk 0:00:19]}  Bxd6 {[%clk 0:00:38]} 34. exd6 {[%clk 0:00:19]}  Qxd6 {[%clk 0:00:35]} 35. Rc6 {[%clk 0:00:19]}  Qxd4 {[%clk 0:00:33]} 36. Qxe6+ {[%clk 0:00:19]}  Kh8 {[%clk 0:00:33]} 37. Qg6 {[%clk 0:00:16]}  Qe4+ {[%clk 0:00:29]} 38. Kh2 {[%clk 0:00:12]}  Rxb2 {[%clk 0:00:29]} 0-1


[Site "https://www.chess.com"]

[Event "Titled Tuesday Blitz May 2 Late 2023"]
[White "Wadsworth, Matthew J"]
[Black "Grischuk, Alexander"]
[WhiteFideId "415804"]
[BlackFideId "4126025"]
[WhiteElo "2330"]
[BlackElo "2727"]
[Result "0-1"]
[Round "02"]
[TimeControl "180+2"]
[Date "2023.05.02"]
[WhiteClock "0:00:06"]
[BlackClock "0:01:00"]

1. Nf3 {[%clk 0:03:00]}  g6 {[%clk 0:02:57]} 2. g3 {[%clk 0:03:00]}  Bg7 {[%clk 0:02:57]} 3. Bg2 {[%clk 0:03:01]}  c5 {[%clk 0:02:58]} 4. c4 {[%clk 0:03:00]}  Nc6 {[%clk 0:02:58]} 5. Nc3 {[%clk 0:03:01]}  d6 {[%clk 0:02:57]} 6. O-O {[%clk 0:03:00]}  h5 {[%clk 0:02:58]} 7. h4 {[%clk 0:02:54]}  Nh6 {[%clk 0:02:57]} 8. d3 {[%clk 0:02:45]}  Nf5 {[%clk 0:02:56]} 9. a3 {[%clk 0:02:44]}  Qd7 {[%clk 0:02:50]} 10. Rb1 {[%clk 0:02:42]}  b6 {[%clk 0:02:49]} 11. Bd2 {[%clk 0:02:40]}  Bb7 {[%clk 0:02:50]} 12. b4 {[%clk 0:02:39]}  O-O {[%clk 0:02:48]} 13. e4 {[%clk 0:02:32]}  Nfd4 {[%clk 0:02:47]} 14. Ng5 {[%clk 0:02:32]}  e6 {[%clk 0:02:31]} 15. b5 {[%clk 0:02:27]}  Ne5 {[%clk 0:02:29]} 16. Be3 {[%clk 0:02:25]}  Ng4 {[%clk 0:02:27]} 17. Ne2 {[%clk 0:02:06]}  Nxe3 {[%clk 0:02:23]} 18. fxe3 {[%clk 0:02:06]}  Nxe2+ {[%clk 0:02:23]} 19. Qxe2 {[%clk 0:02:06]}  Qe7 {[%clk 0:02:21]} 20. Bh3 {[%clk 0:01:59]}  Bh6 {[%clk 0:02:19]} 21. Nf3 {[%clk 0:01:49]}  f5 {[%clk 0:02:19]} 22. Nd2 {[%clk 0:01:24]}  Rae8 {[%clk 0:02:02]} 23. Bg2 {[%clk 0:01:21]}  Kh7 {[%clk 0:01:48]} 24. a4 {[%clk 0:01:19]}  d5 {[%clk 0:01:36]} 25. e5 {[%clk 0:01:00]}  Qc7 {[%clk 0:01:30]} 26. cxd5 {[%clk 0:00:53]}  Qxe5 {[%clk 0:01:28]} 27. Nc4 {[%clk 0:00:47]}  Qxg3 {[%clk 0:01:28]} 28. d6 {[%clk 0:00:41]}  Bxg2 {[%clk 0:01:14]} 29. Qxg2 {[%clk 0:00:40]}  Bxe3+ {[%clk 0:01:15]} 30. Nxe3 {[%clk 0:00:40]}  Qxe3+ {[%clk 0:01:15]} 31. Kh1 {[%clk 0:00:40]}  Qd4 {[%clk 0:01:09]} 32. Qb7+ {[%clk 0:00:34]}  Kh6 {[%clk 0:01:08]} 33. Qxa7 {[%clk 0:00:23]}  Qd5+ {[%clk 0:01:07]} 34. Kg1 {[%clk 0:00:21]}  Qxd6 {[%clk 0:01:07]} 35. a5 {[%clk 0:00:20]}  Qg3+ {[%clk 0:01:06]} 36. Kh1 {[%clk 0:00:20]}  Qxh4+ {[%clk 0:01:06]} 37. Kg1 {[%clk 0:00:20]}  Qg3+ {[%clk 0:01:05]} 38. Kh1 {[%clk 0:00:20]}  Rd8 {[%clk 0:01:03]} 39. Qe7 {[%clk 0:00:09]}  Rfe8 {[%clk 0:01:02]} 40. Qf7 {[%clk 0:00:06]}  Rd4 {[%clk 0:01:00]} 0-1


[Site "https://www.chess.com"]

[Event "Titled Tuesday Blitz May 2 Late 2023"]
[White "Sarana, Alexey"]
[Black "Koziorowicz, Michal"]
[WhiteFideId "24133795"]
[BlackFideId "21809194"]
[WhiteElo "2714"]
[BlackElo "2255"]
[Result "1-0"]
[Round "02"]
[TimeControl "180+2"]
[Date "2023.05.02"]
[WhiteClock "0:00:56"]
[BlackClock "0:01:46"]

1. d4 {[%clk 0:03:00]}  Nf6 {[%clk 0:02:57]} 2. c4 {[%clk 0:03:01]}  e6 {[%clk 0:02:56]} 3. Nc3 {[%clk 0:03:01]}  b6 {[%clk 0:02:55]} 4. e4 {[%clk 0:03:01]}  d6 {[%clk 0:02:54]} 5. Bd3 {[%clk 0:03:00]}  Nbd7 {[%clk 0:02:50]} 6. Nge2 {[%clk 0:03:00]}  Bb7 {[%clk 0:02:49]} 7. O-O {[%clk 0:03:00]}  Be7 {[%clk 0:02:48]} 8. f4 {[%clk 0:03:00]}  e5 {[%clk 0:02:48]} 9. Bc2 {[%clk 0:02:56]}  O-O {[%clk 0:02:46]} 10. Kh1 {[%clk 0:02:56]}  Re8 {[%clk 0:02:45]} 11. b3 {[%clk 0:02:47]}  exd4 {[%clk 0:02:42]} 12. Nxd4 {[%clk 0:02:45]}  Nc5 {[%clk 0:02:42]} 13. e5 {[%clk 0:01:55]}  dxe5 {[%clk 0:02:35]} 14. fxe5 {[%clk 0:01:56]}  Nfd7 {[%clk 0:02:27]} 15. e6 {[%clk 0:01:10]}  Nxe6 {[%clk 0:02:07]} 16. Bxh7+ {[%clk 0:01:09]}  Kxh7 {[%clk 0:01:59]} 17. Qh5+ {[%clk 0:01:07]}  Kg8 {[%clk 0:01:58]} 18. Qxf7+ {[%clk 0:01:08]}  Kh7 {[%clk 0:01:58]} 19. Nxe6 {[%clk 0:01:07]}  Bf6 {[%clk 0:01:54]} 20. Nxd8 {[%clk 0:01:04]}  Raxd8 {[%clk 0:01:55]} 21. Bb2 {[%clk 0:00:57]}  Ne5 {[%clk 0:01:50]} 22. Qh5+ {[%clk 0:00:57]}  Kg8 {[%clk 0:01:51]} 23. Rad1 {[%clk 0:00:56]}  Rxd1 {[%clk 0:01:46]} 24. Qxe8+ {[%clk 0:00:56]} 1-0


[Site "https://www.chess.com"]

[Event "Titled Tuesday Blitz May 2 Late 2023"]
[White "Saveliev, Alexei"]
[Black "Deac, Bogdan-Daniel"]
[WhiteFideId "24128546"]
[BlackFideId "1226380"]
[WhiteElo "2271"]
[BlackElo "2649"]
[Result "0-1"]
[Round "02"]
[TimeControl "180+2"]
[Date "2023.05.02"]
[WhiteClock "0:00:01"]
[BlackClock "0:00:04"]

1. c4 {[%clk 0:03:00]}  b6 {[%clk 0:02:58]} 2. Nc3 {[%clk 0:03:01]}  Bb7 {[%clk 0:02:59]} 3. d4 {[%clk 0:03:01]}  f5 {[%clk 0:02:57]} 4. a3 {[%clk 0:02:55]}  e6 {[%clk 0:02:56]} 5. d5 {[%clk 0:02:55]}  exd5 {[%clk 0:02:44]} 6. cxd5 {[%clk 0:02:56]}  Nf6 {[%clk 0:02:44]} 7. g3 {[%clk 0:02:56]}  g6 {[%clk 0:02:40]} 8. Bg2 {[%clk 0:02:55]}  Bg7 {[%clk 0:02:40]} 9. Nh3 {[%clk 0:02:56]}  O-O {[%clk 0:02:38]} 10. O-O {[%clk 0:02:55]}  Na6 {[%clk 0:02:38]} 11. Bg5 {[%clk 0:02:43]}  h6 {[%clk 0:02:34]} 12. Be3 {[%clk 0:02:42]}  Qe8 {[%clk 0:02:30]} 13. Qc2 {[%clk 0:02:37]}  c5 {[%clk 0:02:18]} 14. Rad1 {[%clk 0:02:10]}  d6 {[%clk 0:02:15]} 15. Nf4 {[%clk 0:02:03]}  Nc7 {[%clk 0:02:14]} 16. Qb3 {[%clk 0:01:47]}  Kh7 {[%clk 0:02:06]} 17. Ne6 {[%clk 0:01:15]}  Nxe6 {[%clk 0:02:06]} 18. dxe6 {[%clk 0:01:16]}  Bxg2 {[%clk 0:02:06]} 19. Kxg2 {[%clk 0:01:17]}  Qc6+ {[%clk 0:02:06]} 20. Kg1 {[%clk 0:01:16]}  Rfe8 {[%clk 0:02:05]} 21. Bf4 {[%clk 0:01:11]}  Rad8 {[%clk 0:01:59]} 22. Nb5 {[%clk 0:00:52]}  c4 {[%clk 0:01:42]} 23. Nd4 {[%clk 0:00:46]}  Qc5 {[%clk 0:01:34]} 24. Qf3 {[%clk 0:00:42]}  Ng4 {[%clk 0:00:54]} 25. e7 {[%clk 0:00:22]}  Rd7 {[%clk 0:00:36]} 26. Ne6 {[%clk 0:00:22]}  Ne5 {[%clk 0:00:27]} 27. Qc3 {[%clk 0:00:12]}  Qc6 {[%clk 0:00:19]} 28. Nxg7 {[%clk 0:00:12]}  Kxg7 {[%clk 0:00:20]} 29. Bxe5+ {[%clk 0:00:04]}  dxe5 {[%clk 0:00:20]} 30. Qxe5+ {[%clk 0:00:05]}  Kf7 {[%clk 0:00:19]} 31. Rxd7 {[%clk 0:00:05]}  Qxd7 {[%clk 0:00:20]} 32. Rc1 {[%clk 0:00:05]}  Rxe7 {[%clk 0:00:15]} 33. Qf4 {[%clk 0:00:05]}  b5 {[%clk 0:00:12]} 34. Qxh6 {[%clk 0:00:05]}  Qd6 {[%clk 0:00:09]} 35. h4 {[%clk 0:00:03]}  Qe5 {[%clk 0:00:05]} 36. Rc3 {[%clk 0:00:03]}  Qg7 {[%clk 0:00:04]} 37. Qf4 {[%clk 0:00:03]}  Qe5 {[%clk 0:00:04]} 38. Qh6 {[%clk 0:00:03]}  Qf6 {[%clk 0:00:04]} 39. Rf3 {[%clk 0:00:02]}  Rxe2 {[%clk 0:00:04]} 40. h5 {[%clk 0:00:02]}  Re1+ {[%clk 0:00:04]} 41. Kg2 {[%clk 0:00:02]}  Re5 {[%clk 0:00:05]} 42. Qh7+ {[%clk 0:00:03]}  Qg7 {[%clk 0:00:05]} 43. hxg6+ {[%clk 0:00:03]}  Kf6 {[%clk 0:00:05]} 44. Qh4+ {[%clk 0:00:03]}  Kxg6 {[%clk 0:00:06]} 45. Qf4 {[%clk 0:00:03]}  Qf6 {[%clk 0:00:05]} 46. Qd4 {[%clk 0:00:03]}  a6 {[%clk 0:00:04]} 47. g4 {[%clk 0:00:02]}  Qe6 {[%clk 0:00:03]} 48. gxf5+ {[%clk 0:00:02]}  Rxf5 {[%clk 0:00:04]} 49. Rg3+ {[%clk 0:00:02]}  Rg5 {[%clk 0:00:03]} 50. Rxg5+ {[%clk 0:00:02]}  Kxg5 {[%clk 0:00:04]} 51. Qc5+ {[%clk 0:00:01]}  Kg6 {[%clk 0:00:04]} 0-1


[Site "https://www.chess.com"]

[Event "Titled Tuesday Blitz May 2 Late 2023"]
[White "Sanal, Vahap"]
[Black "Ambartsumova, Karina"]
[WhiteFideId "6300545"]
[BlackFideId "4166299"]
[WhiteElo "2606"]
[BlackElo "2240"]
[Result "1-0"]
[Round "02"]
[TimeControl "180+2"]
[Date "2023.05.02"]
[WhiteClock "0:00:38"]
[BlackClock "0:00:41"]

1. e4 {[%clk 0:02:06]}  e5 {[%clk 0:02:58]} 2. Nc3 {[%clk 0:02:00]}  Nf6 {[%clk 0:02:57]} 3. Bc4 {[%clk 0:01:57]}  Nxe4 {[%clk 0:02:44]} 4. Qh5 {[%clk 0:01:56]}  Nd6 {[%clk 0:02:28]} 5. Qxe5+ {[%clk 0:01:55]}  Qe7 {[%clk 0:02:28]} 6. Qxe7+ {[%clk 0:01:56]}  Bxe7 {[%clk 0:02:28]} 7. Be2 {[%clk 0:01:57]}  O-O {[%clk 0:02:27]} 8. Nd5 {[%clk 0:01:52]}  Bd8 {[%clk 0:02:27]} 9. d4 {[%clk 0:01:52]}  c6 {[%clk 0:02:22]} 10. Ne3 {[%clk 0:01:44]}  Ne4 {[%clk 0:02:19]} 11. f3 {[%clk 0:01:41]}  Nf6 {[%clk 0:02:18]} 12. Kf2 {[%clk 0:01:33]}  d5 {[%clk 0:02:16]} 13. Bd3 {[%clk 0:01:30]}  Re8 {[%clk 0:02:11]} 14. c3 {[%clk 0:01:30]}  Nbd7 {[%clk 0:02:10]} 15. Ne2 {[%clk 0:01:26]}  Nf8 {[%clk 0:02:08]} 16. g4 {[%clk 0:01:27]}  b6 {[%clk 0:02:01]} 17. h4 {[%clk 0:01:25]}  c5 {[%clk 0:01:57]} 18. g5 {[%clk 0:01:14]}  Nh5 {[%clk 0:01:57]} 19. Bb5 {[%clk 0:01:11]}  Bd7 {[%clk 0:01:42]} 20. Bxd7 {[%clk 0:01:11]}  Nxd7 {[%clk 0:01:43]} 21. Bd2 {[%clk 0:01:08]}  Nf8 {[%clk 0:01:22]} 22. Nxd5 {[%clk 0:01:05]}  Rc8 {[%clk 0:01:14]} 23. Ndf4 {[%clk 0:00:58]}  Nxf4 {[%clk 0:01:11]} 24. Bxf4 {[%clk 0:00:59]}  Ne6 {[%clk 0:01:09]} 25. Be3 {[%clk 0:00:59]}  cxd4 {[%clk 0:01:06]} 26. Nxd4 {[%clk 0:01:00]}  Nc5 {[%clk 0:01:04]} 27. Rad1 {[%clk 0:01:00]}  Bc7 {[%clk 0:00:58]} 28. Nb5 {[%clk 0:00:49]}  Bb8 {[%clk 0:00:48]} 29. Nd6 {[%clk 0:00:49]}  Bxd6 {[%clk 0:00:47]} 30. Rxd6 {[%clk 0:00:50]}  Na4 {[%clk 0:00:48]} 31. Rd2 {[%clk 0:00:47]}  Rc6 {[%clk 0:00:48]} 32. Rhd1 {[%clk 0:00:38]}  a6 {[%clk 0:00:46]} 33. Rd8 {[%clk 0:00:36]}  Re6 {[%clk 0:00:46]} 34. Rxe8+ {[%clk 0:00:36]}  Rxe8 {[%clk 0:00:47]} 35. Rd2 {[%clk 0:00:37]}  b5 {[%clk 0:00:45]} 36. Bd4 {[%clk 0:00:38]}  Rc8 {[%clk 0:00:42]} 37. b3 {[%clk 0:00:38]}  Nxc3 {[%clk 0:00:41]} 38. Bxc3 {[%clk 0:00:38]} 1-0


[Site "https://www.chess.com"]

[Event "Titled Tuesday Blitz May 2 Late 2023"]
[White "Plotnikov, Pavel"]
[Black "Maghsoodloo, Parham"]
[WhiteFideId "4170342"]
[BlackFideId "12539929"]
[WhiteElo "2298"]
[BlackElo "2647"]
[Result "0-1"]
[Round "02"]
[TimeControl "180+2"]
[Date "2023.05.02"]
[WhiteClock "0:00:14"]
[BlackClock "0:01:47"]

1. d4 {[%clk 0:02:59]}  Nf6 {[%clk 0:02:59]} 2. c4 {[%clk 0:03:00]}  e6 {[%clk 0:02:57]} 3. Nc3 {[%clk 0:03:00]}  Bb4 {[%clk 0:02:58]} 4. e3 {[%clk 0:03:00]}  O-O {[%clk 0:02:58]} 5. Bd3 {[%clk 0:03:01]}  d5 {[%clk 0:02:58]} 6. Ne2 {[%clk 0:03:01]}  Nbd7 {[%clk 0:02:52]} 7. a3 {[%clk 0:03:00]}  Be7 {[%clk 0:02:52]} 8. cxd5 {[%clk 0:02:55]}  exd5 {[%clk 0:02:51]} 9. Qc2 {[%clk 0:02:54]}  c5 {[%clk 0:02:48]} 10. Bd2 {[%clk 0:02:45]}  c4 {[%clk 0:02:44]} 11. Bf5 {[%clk 0:02:43]}  g6 {[%clk 0:02:35]} 12. Bh3 {[%clk 0:02:42]}  Nb6 {[%clk 0:02:36]} 13. Bxc8 {[%clk 0:02:38]}  Nxc8 {[%clk 0:02:31]} 14. O-O {[%clk 0:02:36]}  Nd6 {[%clk 0:02:29]} 15. f3 {[%clk 0:02:32]}  Nf5 {[%clk 0:02:24]} 16. g4 {[%clk 0:02:17]}  Ng7 {[%clk 0:02:23]} 17. Be1 {[%clk 0:01:52]}  Ne6 {[%clk 0:02:22]} 18. Bg3 {[%clk 0:01:42]}  a6 {[%clk 0:02:19]} 19. Rad1 {[%clk 0:01:38]}  b5 {[%clk 0:02:18]} 20. Qc1 {[%clk 0:01:28]}  Re8 {[%clk 0:02:04]} 21. e4 {[%clk 0:01:25]}  dxe4 {[%clk 0:02:04]} 22. fxe4 {[%clk 0:01:25]}  Nxg4 {[%clk 0:02:04]} 23. Nd5 {[%clk 0:01:15]}  Bg5 {[%clk 0:02:02]} 24. Qc3 {[%clk 0:01:02]}  f5 {[%clk 0:02:01]} 25. Nef4 {[%clk 0:00:50]}  Bxf4 {[%clk 0:01:55]} 26. Bxf4 {[%clk 0:00:49]}  fxe4 {[%clk 0:01:53]} 27. Nb4 {[%clk 0:00:36]}  e3 {[%clk 0:01:52]} 28. Rde1 {[%clk 0:00:35]}  Nxf4 {[%clk 0:01:51]} 29. Rxf4 {[%clk 0:00:33]}  Qg5 {[%clk 0:01:51]} 30. Nd5 {[%clk 0:00:14]}  Nf6+ {[%clk 0:01:47]} 0-1


[Site "https://www.chess.com"]

[Event "Titled Tuesday Blitz May 2 Late 2023"]
[White "Matlakov, Maxim"]
[Black "Domingo Nunez, Ruben"]
[WhiteFideId "4168003"]
[BlackFideId "22245570"]
[WhiteElo "2666"]
[BlackElo "2404"]
[Result "1-0"]
[Round "02"]
[TimeControl "180+2"]
[Date "2023.05.02"]
[WhiteClock "0:00:23"]
[BlackClock "0:00:01"]

1. Nf3 {[%clk 0:02:54]}  Nf6 {[%clk 0:02:59]} 2. g3 {[%clk 0:02:54]}  g6 {[%clk 0:02:59]} 3. Bg2 {[%clk 0:02:54]}  Bg7 {[%clk 0:03:00]} 4. d4 {[%clk 0:02:54]}  O-O {[%clk 0:03:01]} 5. O-O {[%clk 0:02:54]}  d6 {[%clk 0:03:02]} 6. Nc3 {[%clk 0:02:54]}  Nc6 {[%clk 0:03:01]} 7. d5 {[%clk 0:02:53]}  Nb8 {[%clk 0:03:01]} 8. e4 {[%clk 0:02:53]}  e5 {[%clk 0:02:49]} 9. dxe6 {[%clk 0:02:52]}  Bxe6 {[%clk 0:02:49]} 10. Nd4 {[%clk 0:02:52]}  Bg4 {[%clk 0:02:47]} 11. f3 {[%clk 0:02:46]}  Bd7 {[%clk 0:02:45]} 12. Be3 {[%clk 0:02:46]}  Nc6 {[%clk 0:02:44]} 13. Qd2 {[%clk 0:02:45]}  Re8 {[%clk 0:02:44]} 14. Rad1 {[%clk 0:02:45]}  Nxd4 {[%clk 0:02:29]} 15. Bxd4 {[%clk 0:02:45]}  Bc6 {[%clk 0:02:30]} 16. Rfe1 {[%clk 0:02:44]}  Qd7 {[%clk 0:02:26]} 17. f4 {[%clk 0:02:39]}  Rad8 {[%clk 0:02:19]} 18. Re2 {[%clk 0:02:38]}  Qc8 {[%clk 0:01:23]} 19. h3 {[%clk 0:02:35]}  b5 {[%clk 0:01:18]} 20. a3 {[%clk 0:02:28]}  a5 {[%clk 0:01:15]} 21. b4 {[%clk 0:02:28]}  axb4 {[%clk 0:01:07]} 22. axb4 {[%clk 0:02:29]}  Ba8 {[%clk 0:01:08]} 23. Rde1 {[%clk 0:01:16]}  c5 {[%clk 0:01:05]} 24. Bf2 {[%clk 0:01:16]}  cxb4 {[%clk 0:00:34]} 25. Nxb5 {[%clk 0:01:16]}  d5 {[%clk 0:00:28]} 26. e5 {[%clk 0:01:15]}  Ne4 {[%clk 0:00:29]} 27. Qd3 {[%clk 0:00:57]}  Bf8 {[%clk 0:00:19]} 28. Kh2 {[%clk 0:00:48]}  h5 {[%clk 0:00:16]} 29. Bd4 {[%clk 0:00:44]}  h4 {[%clk 0:00:16]} 30. g4 {[%clk 0:00:44]}  Ng3 {[%clk 0:00:15]} 31. Rf2 {[%clk 0:00:42]}  Qc4 {[%clk 0:00:12]} 32. Rb1 {[%clk 0:00:37]}  g5 {[%clk 0:00:08]} 33. f5 {[%clk 0:00:34]}  f6 {[%clk 0:00:06]} 34. e6 {[%clk 0:00:33]}  Bd6 {[%clk 0:00:07]} 35. Nxd6 {[%clk 0:00:31]}  Rxd6 {[%clk 0:00:06]} 36. Bxf6 {[%clk 0:00:29]}  Qc5 {[%clk 0:00:02]} 37. Bd4 {[%clk 0:00:28]}  Qc7 {[%clk 0:00:02]} 38. Be5 {[%clk 0:00:25]}  Qc5 {[%clk 0:00:03]} 39. Qd2 {[%clk 0:00:24]}  Kf8 {[%clk 0:00:01]} 40. Qxg5 {[%clk 0:00:23]} 1-0


[Site "https://www.chess.com"]

[Event "Titled Tuesday Blitz May 2 Late 2023"]
[White "Grinev, Valeriy"]
[Black "Hakobyan, Aram"]
[WhiteFideId "14117517"]
[BlackFideId "13306677"]
[WhiteElo "2366"]
[BlackElo "2584"]
[Result "0-1"]
[Round "02"]
[TimeControl "180+2"]
[Date "2023.05.02"]
[WhiteClock "0:00:13"]
[BlackClock "0:00:14"]

1. d4 {[%clk 0:03:00]}  Nf6 {[%clk 0:02:59]} 2. c4 {[%clk 0:03:00]}  e6 {[%clk 0:02:59]} 3. Nc3 {[%clk 0:03:00]}  Bb4 {[%clk 0:03:00]} 4. e3 {[%clk 0:03:00]}  Bxc3+ {[%clk 0:02:59]} 5. bxc3 {[%clk 0:03:00]}  c5 {[%clk 0:02:59]} 6. Bd3 {[%clk 0:03:00]}  d6 {[%clk 0:03:00]} 7. Ne2 {[%clk 0:03:00]}  Nc6 {[%clk 0:03:00]} 8. O-O {[%clk 0:03:00]}  e5 {[%clk 0:02:57]} 9. d5 {[%clk 0:02:57]}  e4 {[%clk 0:02:44]} 10. Bb1 {[%clk 0:02:41]}  Ne5 {[%clk 0:02:44]} 11. Ng3 {[%clk 0:02:40]}  Bg4 {[%clk 0:02:33]} 12. Qb3 {[%clk 0:02:28]}  O-O {[%clk 0:02:22]} 13. Nxe4 {[%clk 0:02:27]}  Be2 {[%clk 0:02:17]} 14. Re1 {[%clk 0:02:12]}  Bxc4 {[%clk 0:02:15]} 15. Nxf6+ {[%clk 0:01:55]}  Qxf6 {[%clk 0:02:16]} 16. Qd1 {[%clk 0:01:55]}  Ng6 {[%clk 0:01:43]} 17. Qd2 {[%clk 0:01:34]}  Rae8 {[%clk 0:01:34]} 18. e4 {[%clk 0:01:30]}  Qh4 {[%clk 0:01:31]} 19. Bc2 {[%clk 0:00:56]}  b5 {[%clk 0:01:29]} 20. a4 {[%clk 0:00:53]}  a6 {[%clk 0:01:24]} 21. axb5 {[%clk 0:00:53]}  axb5 {[%clk 0:01:25]} 22. Ra6 {[%clk 0:00:52]}  Qf6 {[%clk 0:01:15]} 23. Rb6 {[%clk 0:00:50]}  h6 {[%clk 0:01:13]} 24. f3 {[%clk 0:00:43]}  Re7 {[%clk 0:01:04]} 25. Bd3 {[%clk 0:00:43]}  Ne5 {[%clk 0:01:04]} 26. Bb1 {[%clk 0:00:41]}  Rfe8 {[%clk 0:00:57]} 27. Qf4 {[%clk 0:00:40]}  Qg6 {[%clk 0:00:55]} 28. Qg3 {[%clk 0:00:39]}  Qxg3 {[%clk 0:00:43]} 29. hxg3 {[%clk 0:00:40]}  Rd7 {[%clk 0:00:41]} 30. Kf2 {[%clk 0:00:34]}  Ra8 {[%clk 0:00:38]} 31. Bf4 {[%clk 0:00:34]}  f6 {[%clk 0:00:34]} 32. Rd1 {[%clk 0:00:30]}  Ra3 {[%clk 0:00:32]} 33. Bd2 {[%clk 0:00:27]}  Kf7 {[%clk 0:00:29]} 34. Ke1 {[%clk 0:00:25]}  Rb3 {[%clk 0:00:23]} 35. Rc1 {[%clk 0:00:21]}  Rb2 {[%clk 0:00:22]} 36. Kd1 {[%clk 0:00:20]}  Bb3+ {[%clk 0:00:21]} 37. Ke1 {[%clk 0:00:19]}  Rxd2 {[%clk 0:00:19]} 38. Kxd2 {[%clk 0:00:19]}  Nc4+ {[%clk 0:00:19]} 39. Ke2 {[%clk 0:00:17]}  Nxb6 {[%clk 0:00:20]} 40. Bd3 {[%clk 0:00:18]}  Bc4 {[%clk 0:00:20]} 41. Ra1 {[%clk 0:00:17]}  Bxd3+ {[%clk 0:00:19]} 42. Kxd3 {[%clk 0:00:18]}  Na4 {[%clk 0:00:20]} 43. Rb1 {[%clk 0:00:18]}  Rb7 {[%clk 0:00:19]} 44. Kc2 {[%clk 0:00:18]}  b4 {[%clk 0:00:19]} 45. cxb4 {[%clk 0:00:17]}  Rxb4 {[%clk 0:00:20]} 46. Ra1 {[%clk 0:00:17]}  h5 {[%clk 0:00:15]} 47. Rh1 {[%clk 0:00:15]}  Kg6 {[%clk 0:00:15]} 48. Kd3 {[%clk 0:00:14]}  c4+ {[%clk 0:00:15]} 49. Kd4 {[%clk 0:00:14]}  c3+ {[%clk 0:00:16]} 50. Ke3 {[%clk 0:00:15]}  Nb2 {[%clk 0:00:14]} 51. Rc1 {[%clk 0:00:13]}  Rc4 {[%clk 0:00:14]} 52. Rc2 {[%clk 0:00:13]}  Rc5 {[%clk 0:00:14]} 53. Kd4 {[%clk 0:00:13]}  Rc4+ {[%clk 0:00:14]} 54. Ke3 {[%clk 0:00:13]}  Kg5 {[%clk 0:00:15]} 55. f4+ {[%clk 0:00:13]}  Kg4 {[%clk 0:00:15]} 56. Kf2 {[%clk 0:00:13]}  Rxe4 {[%clk 0:00:13]} 57. Rxc3 {[%clk 0:00:13]}  Nd1+ {[%clk 0:00:13]} 58. Kf1 {[%clk 0:00:13]}  Nxc3 {[%clk 0:00:14]} 0-1


[Site "https://www.chess.com"]

[Event "Titled Tuesday Blitz May 2 Late 2023"]
[White "Sargsyan, Shant"]
[Black "Kjartansson, David"]
[WhiteFideId "13306766"]
[BlackFideId "2301130"]
[WhiteElo "2628"]
[BlackElo "2333"]
[Result "1-0"]
[Round "02"]
[TimeControl "180+2"]
[Date "2023.05.02"]
[WhiteClock "0:01:35"]
[BlackClock "0:00:33"]

1. g3 {[%clk 0:03:00]}  d6 {[%clk 0:02:50]} 2. Nf3 {[%clk 0:03:00]}  Nf6 {[%clk 0:02:50]} 3. Bg2 {[%clk 0:03:00]}  Nbd7 {[%clk 0:02:51]} 4. O-O {[%clk 0:03:01]}  e5 {[%clk 0:02:51]} 5. c4 {[%clk 0:03:01]}  Be7 {[%clk 0:02:51]} 6. Nc3 {[%clk 0:03:02]}  c6 {[%clk 0:02:51]} 7. d3 {[%clk 0:03:02]}  O-O {[%clk 0:02:52]} 8. b4 {[%clk 0:03:03]}  Qc7 {[%clk 0:02:52]} 9. Rb1 {[%clk 0:03:03]}  a5 {[%clk 0:02:48]} 10. b5 {[%clk 0:03:03]}  Re8 {[%clk 0:02:47]} 11. Bg5 {[%clk 0:03:00]}  h6 {[%clk 0:02:46]} 12. Bxf6 {[%clk 0:03:00]}  Nxf6 {[%clk 0:02:45]} 13. Nd2 {[%clk 0:03:01]}  Be6 {[%clk 0:02:40]} 14. Qa4 {[%clk 0:03:01]}  d5 {[%clk 0:02:36]} 15. Rfc1 {[%clk 0:02:59]}  d4 {[%clk 0:02:14]} 16. Nd5 {[%clk 0:02:49]}  cxd5 {[%clk 0:02:08]} 17. cxd5 {[%clk 0:02:49]}  Qxc1+ {[%clk 0:01:45]} 18. Rxc1 {[%clk 0:02:48]}  Bxd5 {[%clk 0:01:46]} 19. b6 {[%clk 0:02:39]}  Bb4 {[%clk 0:01:39]} 20. Nc4 {[%clk 0:02:34]}  Bxg2 {[%clk 0:01:36]} 21. Kxg2 {[%clk 0:02:34]}  Nd5 {[%clk 0:01:34]} 22. Qd7 {[%clk 0:02:33]}  Red8 {[%clk 0:01:28]} 23. Qxb7 {[%clk 0:02:33]}  Rab8 {[%clk 0:01:28]} 24. Qc6 {[%clk 0:02:29]}  Rbc8 {[%clk 0:01:23]} 25. Qb5 {[%clk 0:02:24]}  Nc3 {[%clk 0:01:10]} 26. Qxe5 {[%clk 0:02:22]}  Re8 {[%clk 0:01:09]} 27. Qf5 {[%clk 0:02:14]}  Nxe2 {[%clk 0:01:09]} 28. Rc2 {[%clk 0:01:54]}  g6 {[%clk 0:01:06]} 29. Qd7 {[%clk 0:01:51]}  Nc3 {[%clk 0:01:03]} 30. b7 {[%clk 0:01:49]}  Rb8 {[%clk 0:01:03]} 31. a3 {[%clk 0:01:44]}  Bf8 {[%clk 0:01:00]} 32. Qxd4 {[%clk 0:01:41]}  Nb5 {[%clk 0:00:58]} 33. Qb6 {[%clk 0:01:39]}  Nxa3 {[%clk 0:00:52]} 34. Nxa3 {[%clk 0:01:39]}  Bxa3 {[%clk 0:00:53]} 35. Qxa5 {[%clk 0:01:39]}  Bf8 {[%clk 0:00:52]} 36. Rc6 {[%clk 0:01:38]}  Rxb7 {[%clk 0:00:51]} 37. Qd5 {[%clk 0:01:37]}  Rb2 {[%clk 0:00:34]} 38. Rxg6+ {[%clk 0:01:35]}  Kh7 {[%clk 0:00:33]} 39. Qxf7+ {[%clk 0:01:35]} 1-0


[Site "https://www.chess.com"]